fUSD/lending_fUSD_20251206
["ID","MTS","AMOUNT","RATE_DAILY","PERIOD"]
[396550960,1765047049491,-500.0,0.00016712,2]
[396550961,1765047049501,-500.0,0.00016712,2]
[396550962,1765047049510,-500.0,0.00016712,2]
[396550963,1765047049519,-500.0,0.00016712,2]
[396550964,1765047049528,-500.0,0.00016712,2]
[396550965,1765047049538,-500.0,0.00016712,2]
[396550966,1765047049547,-569.41,0.00016712,2]
[396550967,1765047049557,-500.0,0.00016712,2]
[396550968,1765047049567,-500.0,0.00016712,2]
[396550969,1765047049576,-500.0,0.00016712,2]
[396550970,1765047049585,-2665.35,0.00016712,2]
[396550971,1765047049595,-500.0,0.00016712,2]
[396550972,1765047049605,-268.4710365,0.00016712,2]
[396550973,1765047049614,-500.0,0.00016712,2]
[396550974,1765047049623,-1921.55,0.00016712,2]
[396550975,1765047049632,-500.0,0.00016712,2]
[396550976,1765047049642,-500.0,0.00016712,2]
[396550977,1765047049652,-500.0,0.00016712,2]
[396550978,1765047049661,-500.0,0.00016712,2]
[396550979,1765047049671,-500.0,0.00016712,2]
[396550980,1765047049680,-500.0,0.00016712,2]
[396550981,1765047049689,-500.0,0.00016712,2]
[396550982,1765047049698,-500.0,0.00016712,2]
[396550983,1765047049707,-500.0,0.00016712,2]
[396550984,1765047049716,-500.0,0.00016712,2]
[396550985,1765047049726,-2531.13,0.00016712,2]
[396550986,1765047049736,-500.0,0.00016712,2]
[396550987,1765047049745,-2646.63,0.00016712,2]
[396550988,1765047049755,-500.0,0.00016712,2]
[396550989,1765047049764,-500.0,0.00016712,2]
[396550990,1765047049773,-500.0,0.00016712,2]
[396550991,1765047049784,-160.16004702,0.00016712,2]
[396550992,1765047049793,-500.0,0.00016712,2]
[396550993,1765047049802,-511.58,0.00016712,2]
[396550994,1765047049812,-505.03086043,0.00016712,2]
[396550995,1765047049821,-500.0,0.00016712,2]
[396550996,1765047049831,-2016.4,0.00016712,2]
[396550997,1765047049840,-4282.64,0.00016712,2]
[396550998,1765047049849,-500.0,0.00016712,2]
[396550999,1765047049858,-500.0,0.00016712,2]
[396551000,1765047049867,-730.42,0.00016712,2]
[396551001,1765047049877,-500.0,0.00016712,2]
[396551002,1765047049886,-500.0,0.00016712,2]
[396551003,1765047049896,-278.00854149,0.00016712,2]
[396551004,1765047049904,-673.15,0.00016712,2]
[396551005,1765047049912,-500.0,0.00016712,2]
[396551006,1765047049920,-500.0,0.00016712,2]
[396551007,1765047049929,-500.0,0.00016712,2]
[396551008,1765047049938,-500.0,0.00016712,2]
[396551009,1765047049947,-500.0,0.00016712,2]
[396551010,1765047049957,-2163.95,0.00016712,2]
[396551011,1765047049966,-500.0,0.00016712,2]
[396551012,1765047049976,-500.0,0.00016712,2]
[396551013,1765047049985,-500.0,0.00016712,2]
[396551014,1765047049995,-960.65,0.00016712,2]
[396551015,1765047050003,-500.0,0.00016712,2]
[396551016,1765047050013,-500.0,0.00016712,2]
[396551017,1765047050022,-1145.3,0.00016712,2]
[396551018,1765047050031,-500.0,0.00016712,2]
[396551019,1765047050040,-613.44,0.00016712,2]
[396551020,1765047050049,-500.0,0.00016712,2]
[396551021,1765047050058,-564.54,0.00016712,2]
[396551022,1765047050067,-500.0,0.00016712,2]
[396551023,1765047050077,-500.0,0.00016712,2]
[396551024,1765047050086,-2631.14,0.00016712,2]
[396551025,1765047050095,-500.0,0.00016712,2]
[396551026,1765047050105,-500.0,0.00016712,2]
[396551027,1765047050122,-500.0,0.00016712,2]
[396551028,1765047050132,-566.27,0.00016712,2]
[396551029,1765047050141,-500.0,0.00016712,2]
[396551030,1765047050152,-500.0,0.00016712,2]
[396551031,1765047050162,-500.0,0.00016712,2]
[396551032,1765047050172,-596.12,0.00016712,2]
[396551033,1765047050181,-597.08,0.00016712,2]
[396551034,1765047050191,-2160.44,0.00016712,2]
[396551035,1765047050201,-496.09231865,0.00016712,2]
[396551036,1765047050211,-500.0,0.00016712,2]
[396551037,1765047050221,-502.27831511,0.00016712,2]
[396551038,1765047050230,-500.0,0.00016712,2]
[396551039,1765047050240,-500.0,0.00016712,2]
[396551040,1765047050250,-500.0,0.00016712,2]
[396551041,1765047050260,-1164.31,0.00016712,2]
[396551042,1765047050270,-500.0,0.00016712,2]
[396551043,1765047050280,-500.0,0.00016712,2]
[396551044,1765047050289,-500.0,0.00016712,2]
[396551045,1765047050299,-500.0,0.00016712,2]
[396551046,1765047050310,-500.0,0.00016712,2]
[396551047,1765047050321,-197.67671682,0.00016712,2]
[396551048,1765047050330,-500.0,0.00016712,2]
[396551049,1765047050341,-2123.45,0.00016712,2]
[396551050,1765047050350,-500.0,0.00016712,2]
[396551051,1765047050360,-500.0,0.00016712,2]
[396551052,1765047050370,-500.0,0.00016712,2]
[396551053,1765047050380,-687.61,0.00016712,2]
[396551054,1765047050390,-500.0,0.00016712,2]
[396551055,1765047050399,-500.0,0.00016712,2]
[396551056,1765047050409,-500.0,0.00016712,2]
[396551057,1765047050420,-500.0,0.00016712,2]
[396551058,1765047050429,-500.0,0.00016712,2]
[396551059,1765047050439,-500.0,0.00016712,2]
[396551060,1765047050448,-542.02,0.00016712,2]
[396551061,1765047050458,-500.0,0.00016712,2]
[396551062,1765047050467,-500.0,0.00016712,2]
[396551063,1765047050477,-500.0,0.00016712,2]
[396551064,1765047050486,-1586.61,0.00016712,2]
[396551065,1765047050497,-615.49,0.00016712,2]
[396551066,1765047050507,-732.58,0.00016712,2]
[396551067,1765047050516,-500.0,0.00016712,2]
[396551068,1765047050526,-500.0,0.00016712,2]
[396551069,1765047050536,-500.0,0.00016712,2]
[396551070,1765047050546,-500.0,0.00016712,2]
[396551071,1765047050555,-500.0,0.00016712,2]
[396551072,1765047050565,-538.46939505,0.00016712,2]
[396551073,1765047050575,-1363.58,0.00016712,2]
[396551074,1765047050585,-500.0,0.00016712,2]
[396551075,1765047050594,-500.0,0.00016712,2]
[396551076,1765047050604,-500.0,0.00016712,2]
[396551077,1765047050614,-709.99,0.00016712,2]
[396551078,1765047050623,-160.24688003,0.00016712,2]
[396551079,1765047050633,-539.32728333,0.00016712,2]
[396551080,1765047050643,-500.0,0.00016712,2]
[396551081,1765047050652,-358.26990661,0.00016712,2]
[396551082,1765047050662,-500.0,0.00016712,2]
[396551083,1765047050672,-500.0,0.00016712,2]
[396551084,1765047050681,-500.0,0.00016712,2]
[396551085,1765047050691,-500.0,0.00016712,2]
[396551086,1765047050702,-500.0,0.00016712,2]
[396551087,1765047050720,-1132.41,0.00016712,2]
[396551088,1765047050730,-500.0,0.00016712,2]
[396551089,1765047050739,-1276.03,0.00016712,2]
[396551090,1765047050749,-500.0,0.00016712,2]
[396551091,1765047050759,-500.0,0.00016712,2]
[396551092,1765047050769,-500.0,0.00016712,2]
[396551093,1765047050778,-565.95,0.00016712,2]
[396551094,1765047050788,-500.0,0.00016712,2]
[396551095,1765047050798,-1749.41,0.00016712,2]
[396551096,1765047050808,-1614.88,0.00016712,2]
[396551097,1765047050817,-1911.22,0.00016712,2]
[396551098,1765047050827,-500.0,0.00016712,2]
[396551099,1765047050837,-536.2,0.00016712,2]
[396551100,1765047050846,-500.0,0.00016712,2]
[396551101,1765047050856,-500.0,0.00016712,2]
[396551102,1765047050865,-4665.37,0.00016712,2]
[396551103,1765047050875,-500.0,0.00016712,2]
[396551104,1765047050884,-360.27629708,0.00016712,2]
[396551105,1765047050894,-500.0,0.00016712,2]
[396551106,1765047050904,-536.96007657,0.00016712,2]
[396551107,1765047050914,-2968.61,0.00016712,2]
[396551108,1765047050924,-500.0,0.00016712,2]
[396551109,1765047050933,-2362.56,0.00016712,2]
[396551110,1765047050944,-500.0,0.00016712,2]
[396551111,1765047050954,-3716.16,0.00016712,2]
[396551112,1765047050963,-500.0,0.00016712,2]
[396551113,1765047050973,-500.0,0.00016712,2]
[396551114,1765047050982,-500.0,0.00016712,2]
[396551115,1765047050992,-7226.83,0.00016712,2]
[396551116,1765047051001,-500.0,0.00016712,2]
[396551117,1765047051011,-500.0,0.00016712,2]
[396551118,1765047051020,-500.0,0.00016712,2]
[396551119,1765047051030,-500.0,0.00016712,2]
[396551120,1765047051040,-872.57,0.00016712,2]
[396551121,1765047051049,-735.82,0.00016712,2]
[396551122,1765047051059,-500.0,0.00016712,2]
[396551123,1765047051069,-2109.02,0.00016712,2]
[396551124,1765047051079,-500.0,0.00016712,2]
[396551125,1765047051088,-500.0,0.00016712,2]
[396551126,1765047051098,-500.0,0.00016712,2]
[396551127,1765047051107,-2289.56,0.00016712,2]
[396551128,1765047051117,-2392.5,0.00016712,2]
[396551129,1765047051126,-500.0,0.00016712,2]
[396551130,1765047051139,-500.0,0.00016712,2]
[396551131,1765047051148,-503.50053736,0.00016712,2]
[396551132,1765047051158,-500.0,0.00016712,2]
[396551133,1765047051168,-500.0,0.00016712,2]
[396551134,1765047051180,-500.0,0.00016712,2]
[396551135,1765047051190,-500.0,0.00016712,2]
[396551136,1765047051200,-500.0,0.00016712,2]
[396551137,1765047051211,-2181.55,0.00016712,2]
[396551138,1765047051223,-500.0,0.00016712,2]
[396551139,1765047051233,-500.0,0.00016712,2]
[396551140,1765047051243,-500.0,0.00016712,2]
[396551141,1765047051253,-556.33355681,0.00016712,2]
[396551142,1765047051263,-2048.55,0.00016712,2]
[396551143,1765047051272,-500.0,0.00016712,2]
[396551144,1765047051282,-619.14209758,0.00016712,2]
[396551145,1765047051293,-524.17,0.00016712,2]
[396551146,1765047051303,-500.0,0.00016712,2]
[396551147,1765047051313,-500.0,0.00016712,2]
[396551148,1765047051322,-1806.09,0.00016712,2]
[396551149,1765047051332,-993.95,0.00016712,2]
[396551150,1765047051342,-349.5711145,0.00016712,2]
[396551151,1765047051351,-500.0,0.00016712,2]
[396551152,1765047051361,-2262.26,0.00016712,2]
[396551153,1765047051371,-595.33,0.00016712,2]
[396551154,1765047051382,-500.0,0.00016712,2]
[396551155,1765047051391,-1119.26,0.00016712,2]
[396551156,1765047051401,-500.0,0.00016712,2]
[396551157,1765047051411,-500.0,0.00016712,2]
[396551158,1765047051420,-500.0,0.00016712,2]
[396551159,1765047051430,-500.0,0.00016712,2]
[396551160,1765047051439,-500.0,0.00016712,2]
[396551161,1765047051449,-500.0,0.00016712,2]
[396551162,1765047051459,-500.0,0.00016712,2]
[396551163,1765047051469,-2542.29,0.00016712,2]
[396551164,1765047051479,-2002.29,0.00016712,2]
[396551165,1765047051491,-500.0,0.00016712,2]
[396551166,1765047051500,-500.0,0.00016712,2]
[396551167,1765047051509,-1409.42,0.00016712,2]
[396551168,1765047051525,-500.0,0.00016712,2]
[396551169,1765047051535,-5232.49,0.00016712,2]
[396551170,1765047051545,-514.49,0.00016712,2]
[396551171,1765047051555,-500.0,0.00016712,2]
[396551172,1765047051566,-593.32,0.00016712,2]
[396551173,1765047051577,-500.0,0.00016712,2]
[396551174,1765047051588,-282.87122018,0.00016712,2]
[396551175,1765047051601,-500.0,0.00016712,2]
[396551176,1765047051611,-657.91,0.00016712,2]
[396551177,1765047051621,-500.0,0.00016712,2]
[396551178,1765047051633,-500.0,0.00016712,2]
[396551179,1765047051644,-503.7055426,0.00016712,2]
[396551180,1765047051654,-2567.68,0.00016712,2]
[396551181,1765047051665,-500.0,0.00016712,2]
[396551182,1765047051676,-500.0,0.00016712,2]
[396551183,1765047051687,-2349.88,0.00016712,2]
[396551184,1765047051699,-1897.85,0.00016712,2]
[396551185,1765047051711,-1844.72,0.00016712,2]
[396551186,1765047051722,-503.78,0.00016712,2]
[396551187,1765047051732,-605.17,0.00016712,2]
[396551188,1765047051742,-1842.86,0.00016712,2]
[396551189,1765047051753,-500.0,0.00016712,2]
[396551190,1765047051763,-500.0,0.00016712,2]
[396551191,1765047051775,-500.0,0.00016712,2]
[396551192,1765047051786,-500.0,0.00016712,2]
[396551193,1765047051797,-500.0,0.00016712,2]
[396551194,1765047051809,-500.0,0.00016712,2]
[396551195,1765047051819,-500.0,0.00016712,2]
[396551196,1765047051830,-2140.37,0.00016712,2]
[396551197,1765047051840,-2349.39,0.00016712,2]
[396551198,1765047051851,-500.0,0.00016712,2]
[396551199,1765047051865,-500.0,0.00016712,2]
[396551200,1765047051880,-500.0,0.00016712,2]
[396551201,1765047051891,-500.0,0.00016712,2]
[396551202,1765047051903,-500.0,0.00016712,2]
[396551203,1765047051914,-500.0,0.00016712,2]
[396551204,1765047051926,-500.0,0.00016712,2]
[396551205,1765047051936,-500.0,0.00016712,2]
[396551206,1765047051947,-500.0,0.00016712,2]
[396551207,1765047051958,-2587.24,0.00016712,2]
[396551208,1765047051970,-500.0,0.00016712,2]
[396551209,1765047051981,-562.55,0.00016712,2]
[396551210,1765047051993,-1868.55,0.00016712,2]
[396551211,1765047052003,-1075.72,0.00016712,2]
[396551212,1765047052015,-500.0,0.00016712,2]
[396551213,1765047052026,-500.0,0.00016712,2]
[396551214,1765047052037,-622.48,0.00016712,2]
[396551215,1765047052047,-2465.79,0.00016712,2]
[396551216,1765047052058,-500.0,0.00016712,2]
[396551217,1765047052069,-2334.07,0.00016712,2]
[396551218,1765047052083,-2465.44,0.00016712,2]
[396551219,1765047052095,-500.0,0.00016712,2]
[396551220,1765047052106,-500.0,0.00016712,2]
[396551221,1765047052116,-500.0,0.00016712,2]
[396551222,1765047052126,-2526.23,0.00016712,2]
[396551223,1765047052141,-2959.29,0.00016712,2]
[396551224,1765047052151,-500.0,0.00016712,2]
[396551225,1765047052162,-500.0,0.00016712,2]
[396551226,1765047052172,-500.0,0.00016712,2]
[396551227,1765047052183,-8749.11,0.00016712,2]
[396551228,1765047052194,-500.0,0.00016712,2]
[396551229,1765047052207,-500.0,0.00016712,2]
[396551230,1765047052218,-500.0,0.00016712,2]
[396551231,1765047052228,-500.0,0.00016712,2]
[396551232,1765047052239,-1787.45,0.00016712,2]
[396551233,1765047052250,-2185.34,0.00016712,2]
[396551234,1765047052260,-2266.96,0.00016712,2]
[396551235,1765047052270,-8695.95,0.00016712,2]
[396551236,1765047052285,-1297.87,0.00016712,2]
[396551237,1765047052295,-1000.0,0.00016712,2]
[396551238,1765047052306,-500.0,0.00016712,2]
[396551239,1765047052317,-716.06,0.00016712,2]
[396551240,1765047052328,-514.66,0.00016712,2]
[396551241,1765047052339,-248.18,0.00016712,2]
[396551242,1765047052350,-542.28,0.00016712,2]
[396551243,1765047052360,-500.0,0.00016712,2]
[396551244,1765047052372,-500.0,0.00016712,2]
[396551245,1765047052384,-500.0,0.00016712,2]
[396551246,1765047052394,-2344.75,0.00016712,2]
[396551247,1765047052405,-500.0,0.00016712,2]
[396551248,1765047052417,-500.0,0.00016712,2]
[396551249,1765047052428,-2792.83,0.00016712,2]
[396551250,1765047052438,-500.0,0.00016712,2]
[396551251,1765047052449,-793.08,0.00016712,2]
[396551252,1765047052460,-500.0,0.00016712,2]
[396551253,1765047052471,-2536.76,0.00016712,2]
[396551254,1765047052486,-500.0,0.00016712,2]
[396551255,1765047052497,-819.74,0.00016712,2]
[396551256,1765047052509,-500.0,0.00016712,2]
[396551257,1765047052519,-2394.8,0.00016712,2]
[396551258,1765047052530,-555.41,0.00016712,2]
[396551259,1765047052540,-500.0,0.00016712,2]
[396551260,1765047052552,-2378.17,0.00016712,2]
[396551261,1765047052914,-1034.78,0.00016712,2]
[396551262,1765047052935,-500.0,0.00016712,2]
[396551263,1765047052954,-500.0,0.00016712,2]
[396551264,1765047052967,-500.0,0.00016712,2]
[396551265,1765047052979,-653.47,0.00016712,2]
[396551266,1765047052991,-552.63,0.00016712,2]
[396551267,1765047053002,-500.0,0.00016712,2]
[396551268,1765047053012,-500.0,0.00016712,2]
[396551269,1765047053022,-1388.29,0.00016712,2]
[396551270,1765047053033,-500.0,0.00016712,2]
[396551271,1765047053043,-500.0,0.00016712,2]
[396551272,1765047053053,-2788.51,0.00016712,2]
[396551273,1765047053063,-500.0,0.00016712,2]
[396551274,1765047053073,-2389.57,0.00016712,2]
[396551275,1765047053084,-508.99882974,0.00016712,2]
[396551276,1765047053095,-500.0,0.00016712,2]
[396551277,1765047053106,-500.0,0.00016712,2]
[396551278,1765047053117,-1679.8,0.00016712,2]
[396551279,1765047053127,-663.1,0.00016712,2]
[396551280,1765047053142,-500.0,0.00016712,2]
[396551281,1765047053153,-500.0,0.00016712,2]
[396551282,1765047053163,-500.0,0.00016712,2]
[396551283,1765047053174,-500.0,0.00016712,2]
[396551284,1765047053184,-500.0,0.00016712,2]
[396551285,1765047053195,-3415.58,0.00016712,2]
[396551286,1765047053206,-500.0,0.00016712,2]
[396551287,1765047053218,-500.0,0.00016712,2]
[396551288,1765047053229,-500.0,0.00016712,2]
[396551289,1765047053239,-1223.3,0.00016712,2]
[396551290,1765047053250,-500.0,0.00016712,2]
[396551291,1765047053261,-2388.31,0.00016712,2]
[396551292,1765047053271,-500.0,0.00016712,2]
[396551293,1765047053281,-500.0,0.00016712,2]
[396551294,1765047053291,-2607.06,0.00016712,2]
[396551295,1765047053302,-500.0,0.00016712,2]
[396551296,1765047053312,-500.0,0.00016712,2]
[396551297,1765047053323,-2245.15,0.00016712,2]
[396551298,1765047053333,-500.0,0.00016712,2]
[396551299,1765047053344,-2789.57,0.00016712,2]
[396551300,1765047053354,-500.0,0.00016712,2]
[396551301,1765047053365,-650.62,0.00016712,2]
[396551302,1765047053376,-500.0,0.00016712,2]
[396551303,1765047053387,-500.0,0.00016712,2]
[396551304,1765047053397,-500.0,0.00016712,2]
[396551305,1765047053407,-628.89,0.00016712,2]
[396551306,1765047053417,-500.0,0.00016712,2]
[396551307,1765047053427,-669.26,0.00016712,2]
[396551308,1765047053438,-2793.84,0.00016712,2]
[396551309,1765047053449,-1384.91,0.00016712,2]
[396551310,1765047053459,-845.96,0.00016712,2]
[396551311,1765047053469,-925.7,0.00016712,2]
[396551312,1765047053479,-500.0,0.00016712,2]
[396551313,1765047053490,-624.98,0.00016712,2]
[396551314,1765047053501,-669.7,0.00016712,2]
[396551315,1765047053516,-154.411359,0.00016712,2]
[396551316,1765047053527,-154.411359,0.00016712,2]
[396551317,1765047053537,-154.411359,0.00016712,2]
[396551318,1765047053548,-154.411359,0.00016712,2]
[396551319,1765047053558,-154.411359,0.00016712,2]
[396551320,1765047053569,-154.411359,0.00016712,2]
[396551321,1765047053579,-500.0,0.00016712,2]
[396551322,1765047053590,-154.411359,0.00016712,2]
[396551323,1765047053600,-154.411359,0.00016712,2]
[396551324,1765047053611,-154.411359,0.00016712,2]
[396551325,1765047053622,-154.411359,0.00016712,2]
[396551326,1765047053632,-154.411359,0.00016712,2]
[396551327,1765047053643,-154.411359,0.00016712,2]
[396551328,1765047053653,-500.0,0.00016712,2]
[396551329,1765047053664,-500.0,0.00016712,2]
[396551330,1765047053674,-154.411359,0.00016712,2]
[396551331,1765047053684,-500.0,0.00016712,2]
[396551332,1765047053694,-154.411359,0.00016712,2]
[396551333,1765047053704,-154.411359,0.00016712,2]
[396551334,1765047053714,-154.411359,0.00016712,2]
[396551335,1765047053724,-500.0,0.00016712,2]
[396551336,1765047053735,-500.0,0.00016712,2]
[396551337,1765047053745,-614.65,0.00016712,2]
[396551338,1765047053755,-500.0,0.00016712,2]
[396551339,1765047053765,-1853.22,0.00016712,2]
[396551340,1765047053775,-500.0,0.00016712,2]
[396551341,1765047053785,-525.12,0.00016712,2]
[396551342,1765047053795,-500.0,0.00016712,2]
[396551343,1765047053804,-500.0,0.00016712,2]
[396551344,1765047053814,-1374.21,0.00016712,2]
[396551345,1765047053824,-1858.11,0.00016712,2]
[396551346,1765047053835,-501.28,0.00016712,2]
[396551347,1765047053845,-2313.59,0.00016712,2]
[396551348,1765047053855,-2145.15,0.00016712,2]
[396551349,1765047053865,-500.0,0.00016712,2]
[396551350,1765047053875,-1945.65,0.00016712,2]
[396551351,1765047053888,-500.0,0.00016712,2]
[396551352,1765047053899,-500.0,0.00016712,2]
[396551353,1765047053910,-2259.33,0.00016712,2]
[396551354,1765047053921,-500.0,0.00016712,2]
[396551355,1765047053931,-634.94975894,0.00016712,2]
[396551356,1765047053941,-500.0,0.00016712,2]
[396551357,1765047053951,-500.0,0.00016712,2]
[396551358,1765047053961,-500.0,0.00016712,2]
[396551359,1765047053972,-1959.36,0.00016712,2]
[396551360,1765047053982,-500.0,0.00016712,2]
[396551361,1765047053993,-500.0,0.00016712,2]
[396551362,1765047054003,-678.48,0.00016712,2]
[396551363,1765047054014,-500.0,0.00016712,2]
[396551364,1765047054024,-500.0,0.00016712,2]
[396551365,1765047054034,-500.0,0.00016712,2]
[396551366,1765047054045,-500.0,0.00016712,2]
[396551367,1765047054056,-3711.28,0.00016712,2]
[396551368,1765047054066,-1931.52,0.00016712,2]
[396551369,1765047054080,-2319.64,0.00016712,2]
[396551370,1765047054090,-501.67,0.00016712,2]
[396551371,1765047054100,-500.0,0.00016712,2]
[396551372,1765047054112,-877.08,0.00016712,2]
[396551373,1765047054122,-2498.15,0.00016712,2]
[396551374,1765047054135,-500.0,0.00016712,2]
[396551375,1765047054147,-500.0,0.00016712,2]
[396551376,1765047054158,-667.29,0.00016712,2]
[396551377,1765047054168,-500.0,0.00016712,2]
[396551378,1765047054179,-764.65,0.00016712,2]
[396551379,1765047054189,-621.65,0.00016712,2]
[396551380,1765047054199,-163.02,0.00016712,2]
[396551381,1765047054210,-1506.94,0.00016712,2]
[396551382,1765047054220,-2187.0,0.00016712,2]
[396551383,1765047054230,-595.46,0.00016712,2]
[396551384,1765047054240,-2899.45,0.00016712,2]
[396551385,1765047054250,-500.0,0.00016712,2]
[396551386,1765047054261,-500.0,0.00016712,2]
[396551387,1765047054271,-2099.45,0.00016712,2]
[396551388,1765047054284,-500.0,0.00016712,2]
[396551389,1765047054295,-500.0,0.00016712,2]
[396551390,1765047054305,-500.0,0.00016712,2]
[396551391,1765047054315,-526.63,0.00016712,2]
[396551392,1765047054325,-617.17,0.00016712,2]
[396551393,1765047054335,-177.65790015,0.00016712,2]
[396551394,1765047054346,-500.0,0.00016712,2]
[396551395,1765047054356,-2302.42,0.00016712,2]
[396551396,1765047054367,-2230.87,0.00016712,2]
[396551397,1765047054377,-500.0,0.00016712,2]
[396551398,1765047054387,-1296.84,0.00016712,2]
[396551399,1765047054396,-500.0,0.00016712,2]
[396551400,1765047054407,-500.0,0.00016712,2]
[396551401,1765047054417,-1772.46,0.00016712,2]
[396551402,1765047054427,-500.0,0.00016712,2]
[396551403,1765047054438,-500.0,0.00016712,2]
[396551404,1765047054448,-607.81498451,0.00016712,2]
[396551405,1765047054458,-1001.48,0.00016712,2]
[396551406,1765047054472,-500.0,0.00016712,2]
[396551407,1765047054482,-2180.54,0.00016712,2]
[396551408,1765047054491,-1059.98,0.00016712,2]
[396551409,1765047054501,-500.0,0.00016712,2]
[396551410,1765047054511,-500.0,0.00016712,2]
[396551411,1765047054521,-913.12,0.00016712,2]
[396551412,1765047054532,-500.0,0.00016712,2]
[396551413,1765047054543,-500.0,0.00016712,2]
[396551414,1765047054553,-2254.85,0.00016712,2]
[396551415,1765047054564,-535.37786281,0.00016712,2]
[396551416,1765047054574,-489.24212124,0.00016712,2]
[396551417,1765047054585,-2073.48,0.00016712,2]
[396551418,1765047054595,-878.01,0.00016712,2]
[396551419,1765047054605,-2048.46,0.00016712,2]
[396551420,1765047054615,-258.12328541,0.00016713,2]
[396551421,1765047054626,-435.6385475,0.00016722,2]
[396551422,1765047054637,-1648.22236269,0.00016772,2]
[396551423,1765047054647,-500.0,0.00016773,2]
[396551424,1765047054657,-500.0,0.00016773,2]
[396551425,1765047054670,-500.0,0.00016773,2]
[396551426,1765047054680,-258.12328541,0.00016775,2]
[396551427,1765047054690,-166.66,0.00016799,2]
[396551428,1765047054700,-257.0,0.00016825,2]
[396551429,1765047054712,-580.33436036,0.00016827,2]
[396551430,1765047054722,-258.12328541,0.00016838,2]
[396551431,1765047054731,-218.38598231,0.00016847,2]
[396551432,1765047054741,-158.25098336,0.00016851,2]
[396551433,1765047054751,-424.88,0.00016852,2]
[396551434,1765047054761,-3289.7788,0.000169,2]
[396551435,1765047054771,-1000.0,0.000169,2]
[396551436,1765047054783,-258.12328541,0.000169,2]
[396551437,1765047054793,-213.28228275,0.000169,2]
[396551438,1765047054802,-180.26689482,0.000169,2]
[396551439,1765047054812,-1734.17710264,0.000169,2]
[396551440,1765047054822,-448.00991296,0.000169,2]
[396551441,1765047054832,-435.6385475,0.00016919,2]
[396551442,1765047054842,-1000.0,0.00016965,2]
[396551443,1765047054851,-304.6147564,0.00016973,2]
[396551444,1765047054861,-500.0,0.00016973,2]
[396551445,1765047054870,-169.69750416,0.00016973,2]
[396551446,1765047054881,-500.0,0.00016973,2]
[396551447,1765047054892,-500.0,0.00016973,2]
[396551448,1765047054902,-470.45216837,0.00016973,2]
[396551449,1765047054912,-500.0,0.00016973,2]
[396551450,1765047054921,-500.0,0.00016973,2]
[396551451,1765047054932,-500.0,0.00016973,2]
[396551452,1765047054942,-500.0,0.00016973,2]
[396551453,1765047054952,-500.0,0.00016973,2]
[396551454,1765047054962,-500.0,0.00016973,2]
[396551455,1765047054973,-500.0,0.00016973,2]
[396551456,1765047054984,-500.0,0.00016973,2]
[396551457,1765047054995,-500.0,0.00016973,2]
[396551458,1765047055006,-500.0,0.00016973,2]
[396551459,1765047055017,-500.0,0.00016973,2]